bitfinex-derivatives/quotes_ETHF0:USTF0_20240822
["timestamp","ask_amount","ask_price","bid_price","bid_amount"]
[1724302759077,0.00571766,2626.8,2626.7,2.633]
[1724302759078,2.49703941,2626.8,2626.7,2.633]
[1724302759378,2.49703941,2626.8,2626.7,2.86133]
[1724302759575,2.50118954,2626.8,2626.7,2.86133]
[1724302759880,0.00986779,2626.8,2626.7,2.86133]
[1724302760077,0.00986779,2626.8,2626.7,3.23133]
[1724302760573,0.00986779,2626.8,2626.7,3.56003]
[1724302762183,0.00986779,2626.8,2626.7,3.23133]
[1724302762681,0.00986779,2626.8,2626.7,2.633]
[1724302763376,0.00986779,2626.8,2626.7,2.86133]
[1724302765066,2.49696188,2626.8,2626.7,2.86133]
[1724302766788,2.99128232,2627.1,2626.7,2.86133]
[1724302766977,3.21771654,2627.1,2627.0,2.86131]
[1724302767175,0.7316,2627.1,2627.0,2.633]
[1724302768087,0.7363088,2627.1,2627.0,2.633]
[1724302768284,0.00381177,2627.3,2627.0,6.4394]
[1724302768480,0.00381177,2627.3,2627.0,2.633]
[1724302768878,0.00381177,2627.3,2627.0,2.86131]
[1724302769083,0.00381177,2627.3,2627.0,2.633]
[1724302769278,0.0075446,2627.3,2627.0,2.633]
[1724302770988,3.8139446,2627.3,2627.0,2.633]
[1724302771888,0.0075446,2627.3,2627.0,2.633]
[1724302772387,0.0075446,2627.3,2627.1,3.43609]
[1724302772591,0.0075446,2627.3,2627.2,0.22829]
[1724302772782,0.0075446,2627.3,2627.2,4.03469]
[1724302772985,0.0075446,2627.3,2627.1,3.2078]
[1724302773178,0.0075446,2627.3,2627.1,3.4361]
[1724302773585,0.0075446,2627.3,2627.2,0.746]
[1724302773789,0.0075446,2627.3,2627.1,3.4361]
[1724302773790,0.0075446,2627.3,2627.1,3.2078]
[1724302774285,3.2078,2628.2,2627.2,3.8064]
[1724302774476,0.3525,2627.5,2627.4,2.633]
[1724302775491,0.3556916,2627.5,2627.4,2.63588167]
[1724302778684,4.1612916,2627.5,2627.4,2.63588167]
[1724302778893,9.1612916,2627.5,2627.4,0.00288167]
[1724302780188,9.1612916,2627.5,2627.1,2.633]
[1724302780189,4.1612916,2627.5,2627.1,2.633]
[1724302780390,3.2078,2627.4,2627.1,2.633]
[1724302780888,7.0142,2627.4,2627.1,2.633]
[1724302781089,3.8064,2627.3,2626.8,2.633]
[1724302781290,3.8064,2627.3,2626.8,2.63681923]
[1724302781291,3.2078,2627.1,2626.8,2.63681923]
[1724302781483,0.3651,2627.0,2626.8,2.63681923]
[1724302783378,0.3854,2626.9,2626.8,2.63681923]
[1724302783582,4.1918,2626.9,2626.8,0.00381923]
[1724302783787,0.22833,2626.8,2626.5,0.00571766]
[1724302784100,3.2078,2626.6,2626.5,0.00571766]
[1724302784286,8.2078,2626.6,2626.5,0.00571766]
[1724302784485,12.015,2626.6,2626.5,0.00571766]
[1724302784885,12.015,2626.6,2626.5,0.00911243]
[1724302785081,12.015,2626.6,2626.0,6.06919]
[1724302785294,0.3804,2626.5,2626.0,6.06919]
[1724302785488,0.3804,2626.5,2626.0,2.633]
[1724302785792,0.3477,2626.4,2626.0,2.633]
[1724302786186,0.3477,2626.4,2626.2,0.22837]
[1724302786584,4.1557,2626.4,2626.2,0.22837]
[1724302786995,3.808,2626.3,2626.2,0.22837]
[1724302787795,3.808,2626.3,2626.1,0.22838]
[1724302787986,0.3477,2626.4,2626.2,0.22837]
[1724302788186,0.3477,2626.4,2626.3,2.633]
[1724302788589,4.1549,2626.4,2626.3,2.633]
[1724302789389,4.5209,2626.4,2626.0,2.86532015]
[1724302789586,3.2078,2626.3,2626.0,2.63693015]
[1724302790390,3.2078,2626.3,2626.1,0.22838]
[1724302790696,3.2078,2626.3,2626.2,0.22838]
[1724302791198,3.2078,2626.3,2626.2,2.86138]
[1724302791594,2.99128232,2627.0,2626.3,3.8072]
[1724302791794,0.366,2627.0,2626.9,2.633]
[1724302792599,0.366,2627.0,2626.9,2.86132]
[1724302793098,0.366,2627.0,2626.9,2.633]
[1724302793798,0.366,2627.0,2626.9,6.66772]
[1724302794191,0.366,2627.0,2626.9,6.4394]
[1724302794800,0.366,2627.0,2626.9,2.633]
[1724302799212,2.99128232,2627.4,2626.9,6.4394]
[1724302799405,0.0031916,2627.5,2627.4,0.22827]
[1724302799699,0.0031916,2627.5,2627.3,2.86128]
[1724302799905,0.0031916,2627.5,2627.4,0.22827]
[1724302800404,0.0031916,2627.5,2627.4,3.43607]
[1724302801501,0.0031916,2627.5,2627.4,3.2078]
[1724302801804,0.0031916,2627.5,2627.4,0.22827]
[1724302801993,0.0031916,2627.5,2627.3,2.633]
[1724302802191,3.8064,2627.4,2627.0,2.633]
[1724302802402,0.7044,2627.3,2627.0,2.633]
[1724302802706,1.0867,2627.3,2627.0,2.633]
[1724302803497,4.30626232,2627.3,2627.0,2.633]
[1724302803805,4.07798232,2627.3,2627.0,2.633]
[1724302804191,7.88438232,2627.3,2627.0,2.633]
[1724302805103,1.0867,2627.3,2627.0,2.86131]
[1724302805608,1.0867,2627.3,2627.0,2.633]
[1724302805904,4.07798232,2627.3,2626.9,0.22831]
[1724302806103,2.99128232,2627.2,2626.8,3.43612]
[1724302806304,4.30626232,2627.3,2626.9,0.22832]
[1724302806606,4.07798232,2627.3,2627.0,0.22831]
[1724302807105,4.07798232,2627.3,2626.9,0.22831]
[1724302807300,4.30626232,2627.3,2626.9,0.22831]
[1724302807704,4.07798232,2627.3,2626.8,3.2078]
[1724302807905,2.99128232,2627.2,2626.5,6.06915]
[1724302808109,2.99128232,2627.2,2626.5,5.8408]
[1724302808110,0.22832,2626.9,2626.5,5.8408]
[1724302808401,0.22832,2626.9,2626.5,6.06915]
[1724302808702,0.3722,2626.8,2626.5,6.06915]
[1724302808907,0.3539,2626.7,2626.5,6.06915]
[1724302809105,0.3539,2626.7,2626.5,2.633]
[1724302809296,0.3539,2626.7,2626.2,3.2078]
[1724302809297,3.8072,2626.6,2626.2,2.633]
[1724302809498,3.70308232,2626.7,2626.3,0.22836]
[1724302809707,0.7118,2626.7,2626.3,0.22836]
[1724302810397,0.7118,2626.7,2626.2,5.8408]
[1724302810609,0.7118,2626.7,2626.5,0.22835]
[1724302811102,0.7118,2626.7,2626.6,0.22834]
[1724302811302,0.3539,2626.7,2626.6,0.22834]
[1724302813402,4.089,2627.2,2626.6,3.8072]
[1724302813600,0.7023,2627.1,2626.9,2.86131]
[1724302813914,0.7023,2627.1,2627.0,0.22831]
[1724302814905,0.7023,2627.1,2626.9,2.86131]
[1724302815306,0.7023,2627.1,2626.9,2.633]
[1724302815307,0.9306,2627.1,2626.9,2.633]
[1724302815912,4.03471,2627.0,2626.6,2.86134]
[1724302816100,0.22834,2626.7,2626.5,3.2078]
[1724302816305,0.7312,2626.6,2626.4,0.22836]
[1724302816615,0.3632,2626.5,2626.4,0.22836]
[1724302816811,0.3632,2626.5,2626.3,2.86136]
[1724302817204,0.3632,2626.5,2626.3,2.633]
[1724302817921,0.3706,2626.6,2626.5,0.22835]
[1724302818217,0.7238,2626.9,2626.6,0.22834]
[1724302818417,1.083,2626.9,2626.5,2.633]
[1724302818719,1.083,2626.9,2626.6,0.22834]
[1724302818911,1.083,2626.9,2626.7,0.22833]
[1724302819613,1.083,2626.9,2626.8,0.22833]
[1724302819822,0.7224,2626.9,2626.8,0.22833]
[1724302820211,4.089,2627.2,2627.0,0.22831]
[1724302820713,0.7069,2627.1,2627.0,0.22831]
[1724302821112,0.7069,2627.1,2626.9,0.22831]
[1724302821515,0.7069,2627.1,2626.8,2.86132]
[1724302821812,0.7069,2627.1,2626.6,3.2078]
[1724302822015,0.7069,2627.1,2626.4,2.86136]
[1724302822016,0.22832,2626.9,2626.4,2.86136]
[1724302822215,0.3627,2626.8,2626.5,0.22835]
[1724302822612,0.3832,2626.7,2626.5,0.22835]
[1724302822812,0.3832,2626.7,2626.4,6.06916]
[1724302822813,0.3506,2626.6,2626.4,6.06916]
[1724302823008,0.3506,2626.6,2626.5,0.22835]
[1724302828623,0.3506,2626.6,2626.4,5.8408]
[1724302828815,0.3506,2626.6,2626.4,6.06916]
[1724302829222,0.3506,2626.6,2626.4,3.43616]
[1724302829411,4.1578,2626.6,2626.1,2.633]
[1724302829619,3.34188232,2626.6,2626.3,2.86137]
[1724302829813,0.3506,2626.6,2626.3,2.86137]
[1724302830313,0.3506,2626.6,2626.3,2.633]
[1724302830510,3.34188232,2626.6,2626.3,2.633]
[1724302831521,7.14908232,2626.6,2626.3,2.633]
[1724302832527,3.34188232,2626.6,2626.3,2.633]
[1724302832716,0.3506,2626.6,2626.3,2.633]
[1724302833524,3.8072,2626.5,2626.1,2.86138]
[1724302833717,0.22835,2626.5,2626.1,2.633]
[1724302833918,3.21963232,2626.5,2626.1,2.633]
[1724302834627,3.21963232,2626.5,2626.1,2.86139]
[1724302834829,2.99128232,2626.5,2626.1,2.86139]
[1724302835024,7.02763232,2626.5,2626.1,2.633]
[1724302835830,3.21966232,2626.2,2626.0,0.00393015]
[1724302836124,0.22839,2626.1,2626.0,0.00393015]
[1724302836320,7.0158,2626.1,2625.5,0.22843]
[1724302836525,7.0158,2626.1,2625.4,2.633]
[1724302836526,0.22841,2625.9,2625.4,2.86144]
[1724302836730,3.21751702,2625.9,2625.4,2.633]
[1724302836925,3.21751702,2625.9,2625.5,0.22844]
[1724302837225,3.21751702,2625.9,2625.5,0.23129217]
[1724302838030,2.99482468,2626.0,2625.5,0.00285217]
[1724302838230,6.19690702,2625.8,2625.5,0.00285217]
[1724302838429,0.22843,2625.7,2625.5,0.00285217]
[1724302838724,0.22843,2625.6,2625.5,0.00285217]
[1724302838928,4.74724687,2625.6,2625.5,0.00285217]
[1724302839331,9.74724687,2625.6,2625.5,0.00285217]
[1724302839525,9.51881687,2625.6,2625.4,0.00571766]
[1724302839720,7.62854,2625.5,2625.4,0.00571766]
[1724302840142,12.62854,2625.5,2625.4,0.00571766]
[1724302840637,12.62854,2625.5,2625.4,0.00881714]
[1724302840826,7.62854,2625.5,2625.4,0.00881714]
[1724302841030,7.4001,2625.5,2625.4,0.23726714]
[1724302841235,4.1923,2625.5,2625.4,0.23726714]
[1724302841929,4.42074,2625.5,2625.4,0.00881714]
[1724302843731,4.1923,2625.5,2625.4,0.00881714]
[1724302843933,4.1923,2625.5,2625.4,0.23726714]
[1724302844321,4.1923,2625.5,2625.4,0.00881714]
[1724302847928,4.42074,2625.5,2625.4,0.00881714]
[1724302848637,0.3835,2625.5,2625.4,0.00881714]
[1724302848837,0.3835,2625.5,2625.4,0.23726714]
[1724302849040,3.55821687,2625.6,2625.5,0.22844]
[1724302849041,0.00271687,2625.6,2625.5,0.22844]
[1724302849243,0.00271687,2625.6,2625.5,0.94474]
[1724302851124,0.00271687,2625.6,2625.5,4.75354]
[1724302855125,0.00271687,2625.6,2625.5,0.94474]
[1724302855445,0.00271687,2625.6,2625.5,4.75354]
[1724302857534,0.00271687,2625.6,2625.5,0.94474]
[1724302860335,0.00271687,2625.6,2625.4,0.35741714]
[1724302860336,0.00271687,2625.6,2625.4,0.00881714]
[1724302860643,0.00271687,2625.6,2625.5,0.22844]
[1724302861235,0.00271687,2625.6,2625.5,4.03724]
[1724302862041,0.00571766,2626.0,2625.9,0.2284]
[1724302862246,0.00571766,2626.0,2625.9,6.0692]
[1724302862540,0.00571766,2626.0,2625.9,9.8772]
[1724302862930,0.01008997,2626.0,2625.9,9.8772]
[1724302863333,0.01008997,2626.0,2625.9,14.8772]
[1724302863334,0.00423701,2626.0,2625.9,14.8772]
[1724302863738,0.00423701,2626.0,2625.9,9.8772]
[1724302864541,0.00423701,2626.0,2625.9,14.8772]
[1724302864748,7.2968,2626.9,2625.9,14.6488]
[1724302864947,8.0368,2626.9,2626.4,6.06916]
[1724302865134,8.0368,2626.9,2626.5,0.3753]
[1724302865341,3.9478,2626.9,2626.5,0.3753]
[1724302865846,3.95207584,2626.9,2626.5,0.60365]
[1724302866442,6.66225318,2626.9,2626.5,0.60365]
[1724302866754,0.74427584,2626.9,2626.6,0.22834]
[1724302868135,0.97259584,2626.9,2626.5,0.60365]
[1724302868333,0.97259584,2626.9,2626.4,6.06915]
[1724302868546,0.22833,2626.8,2626.4,6.06915]
[1724302868733,0.22833,2626.8,2626.4,2.633]
[1724302868933,0.3741,2626.7,2626.4,2.633]
[1724302869138,0.3741,2626.7,2626.5,0.22835]
[1724302869347,0.3741,2626.7,2626.4,2.86136]
[1724302869642,0.3741,2626.7,2626.5,0.22835]
[1724302869847,0.74427584,2626.9,2626.5,0.22835]
[1724302870053,0.97259584,2626.9,2626.4,2.86136]
[1724302870735,0.74427584,2626.9,2626.4,2.86136]
[1724302870940,0.74427584,2626.9,2626.4,3.20856]
[1724302871136,0.97259584,2626.9,2626.4,3.20856]
[1724302871342,0.74427584,2626.9,2626.5,0.22835]
[1724302871542,0.97259584,2626.9,2626.4,2.86136]
[1724302872240,0.74427584,2626.9,2626.5,0.22835]
[1724302873236,0.97259584,2626.9,2626.5,0.22835]
[1724302873650,0.74427584,2626.9,2626.5,0.22835]
[1724302874545,0.74427584,2626.9,2626.4,5.8408]
[1724302874744,0.74427584,2626.9,2626.5,0.22834]
[1724302875147,0.74427584,2626.9,2626.6,0.22834]
[1724302875355,0.74427584,2626.9,2626.5,0.22835]
[1724302876444,0.97259584,2626.9,2626.5,0.22835]
[1724302876651,3.45445318,2626.9,2626.5,0.22835]
[1724302877453,0.97259584,2626.9,2626.5,0.22835]
[1724302877657,0.74427584,2626.9,2626.5,0.22835]
[1724302877950,2.48185734,2626.8,2626.5,0.22835]
[1724302878947,3.22613318,2626.9,2626.6,0.22834]
[1724302879348,3.22613318,2626.9,2626.7,0.22833]
[1724302879549,0.74427584,2626.9,2626.7,0.22833]
[1724302879955,4.55147584,2626.9,2626.7,0.22833]
[1724302880250,7.03333318,2626.9,2626.7,0.22833]
[1724302880452,4.55147584,2626.9,2626.7,0.22833]
[1724302881051,7.03333318,2626.9,2626.7,0.22833]
[1724302881346,4.77979584,2626.9,2626.6,0.22834]
[1724302881544,3.22613318,2626.9,2626.7,0.22833]
[1724302881946,7.26165318,2626.9,2626.7,0.22833]
[1724302882254,7.26165318,2626.9,2626.6,0.22834]
[1724302882454,3.45445318,2626.9,2626.6,0.22834]
[1724302883440,3.22613318,2626.9,2626.7,0.22833]
[1724302883643,3.45445318,2626.9,2626.4,6.13356545]
[1724302883843,3.45445318,2626.9,2626.6,0.22834]
[1724302884641,3.45445318,2626.9,2626.4,5.8408]
[1724302884847,3.45445318,2626.9,2626.7,0.22833]
[1724302885051,4.77979584,2626.9,2626.6,0.22834]
[1724302885246,0.97259584,2626.9,2626.6,0.22834]
[1724302885645,0.74427584,2626.9,2626.7,0.22833]
[1724302885951,0.97259584,2626.9,2626.6,0.22834]
[1724302886552,0.74427584,2626.9,2626.7,0.22833]
[1724302886946,4.55147584,2626.9,2626.7,0.22833]
[1724302887247,0.74427584,2626.9,2626.7,0.22833]
[1724302887451,0.74427584,2626.9,2626.8,0.22833]
[1724302887646,0.74427584,2626.9,2626.7,0.22833]
[1724302888556,0.97259584,2626.9,2626.6,0.22834]
[1724302889453,0.22833,2626.8,2626.5,3.43615]
[1724302889654,0.22833,2626.8,2626.5,0.22835]
[1724302890558,3.22613318,2626.9,2626.8,0.22833]
[1724302890559,0.74427584,2626.9,2626.8,0.22833]
[1724302891056,0.00427584,2626.9,2626.8,0.22833]
[1724302892259,0.00427584,2626.9,2626.8,4.03553]
[1724302892554,0.00427584,2626.9,2626.8,0.22833]
[1724302893555,2.48613318,2626.9,2626.6,0.3778]
[1724302893862,2.48185734,2626.8,2626.6,0.60614]
[1724302894056,0.3602,2626.7,2626.6,0.91008863]
[1724302894353,0.3602,2626.7,2626.5,3.2078]
[1724302894553,0.3602,2626.7,2626.4,2.633]
[1724302894554,2.48185734,2626.6,2626.3,0.22836]
[1724302894860,2.48185734,2626.5,2626.2,0.22837]
[1724302895159,2.48185734,2626.5,2626.3,0.22837]
[1724302895351,0.3595,2626.4,2626.1,2.633]
[1724302895554,2.84135734,2626.4,2626.1,2.633]
[1724302895750,2.84135734,2626.4,2626.1,2.86138]
[1724302896258,2.84135734,2626.4,2626.1,2.633]
[1724302896451,2.48185734,2626.3,2626.1,2.633]
[1724302896764,2.48185734,2626.3,2626.1,2.86139]
[1724302897261,0.3843,2626.2,2626.1,2.86139]
[1724302899658,2.84135734,2626.4,2626.3,0.22837]
[1724302900057,0.3595,2626.4,2626.3,0.22837]
[1724302900864,2.83265734,2626.6,2626.5,0.22835]
[1724302901062,3.18665734,2626.6,2626.5,0.22835]
[1724302901363,4.512,2626.6,2626.5,0.22835]
[1724302901865,4.512,2626.6,2626.4,0.22836]
[1724302902059,2.49018457,2626.5,2626.4,0.22836]
[1724302902261,2.49018457,2626.5,2626.3,0.22836]
[1724302902456,0.22835,2626.5,2626.0,0.22839]
[1724302902762,0.22835,2626.5,2625.8,5.8408]
[1724302902763,2.4910513,2626.3,2625.9,0.3557]
[1724302903066,2.4910513,2626.3,2626.2,0.22838]
[1724302905365,2.98910702,2626.5,2626.2,0.22838]
[1724302905873,2.98910702,2626.5,2626.3,0.22837]
[1724302906460,3.69390702,2626.6,2626.3,0.22837]
[1724302906668,3.69390702,2626.6,2626.1,5.8408]
[1724302906669,2.98910702,2626.5,2626.2,0.22837]
[1724302907168,0.93314,2626.6,2626.0,0.22839]
[1724302907169,3.21746702,2626.4,2626.0,0.22839]
[1724302907361,2.49348608,2626.1,2626.0,0.22839]
[1724302907563,3.21746702,2626.4,2626.0,0.70449495]
[1724302907764,3.21746702,2626.4,2626.0,0.22839]
[1724302907765,2.49412146,2626.1,2626.0,0.22839]
[1724302907967,3.21746702,2626.4,2626.0,0.70449544]
[1724302908167,2.49412435,2626.1,2626.0,0.22839]
[1724302908469,2.98910702,2626.3,2626.0,0.47610656]
[1724302908769,0.3673,2626.2,2626.0,0.22839]
[1724302908964,2.49446659,2626.1,2626.0,0.22839]
[1724302909163,0.3628,2626.1,2626.0,0.70448574]
[1724302909968,2.49463809,2626.1,2626.0,0.70448574]
[1724302910170,2.49463809,2626.1,2626.0,3.33748574]
[1724302910663,2.49463809,2626.1,2626.0,2.86139]
[1724302910858,2.49463809,2626.1,2626.0,4.09916757]
[1724302911064,2.49463809,2626.1,2626.0,4.09916323]
[1724302911367,2.49463809,2626.1,2626.0,4.09915971]
[1724302911570,2.49463809,2626.1,2626.0,3.33745828]
[1724302914673,0.3794,2626.2,2626.0,3.33745828]
[1724302914874,0.3794,2626.2,2626.0,2.86139]
[1724302915169,2.49449613,2626.1,2626.0,2.633]
[1724302915370,0.3794,2626.2,2625.8,3.43621]
[1724302915371,0.60778,2626.2,2625.8,3.43621]
[1724302915674,2.49454414,2625.9,2625.8,3.43621]
[1724302915871,2.49454414,2625.9,2625.8,3.91234516]
[1724302916069,2.84274414,2625.9,2625.8,3.91234516]
[1724302916371,2.84274414,2625.9,2625.8,3.43621]
[1724302916573,0.3482,2625.9,2625.8,0.22841]
[1724302916773,0.3482,2625.9,2625.7,2.86142]
[1724302916972,2.85908703,2625.8,2625.7,2.86142]
[1724302917172,2.85908703,2625.8,2625.7,3.33757688]
[1724302917570,2.85908703,2625.8,2625.5,3.5759]
[1724302917571,4.1736,2625.8,2625.5,3.2078]
[1724302917872,0.22844,2625.5,2625.4,0.00881714]
[1724302918169,2.99325382,2625.5,2625.4,0.00881714]
[1724302918370,3.8088,2625.5,2625.4,0.00881714]
[1724302918770,4.1676,2625.5,2625.4,0.00881714]
[1724302918970,0.3588,2625.5,2625.4,0.23726714]
[1724302919174,0.3588,2625.7,2625.5,0.22843]
[1724302919870,0.3588,2625.7,2625.5,0.22844]
[1724302920072,0.3588,2625.7,2625.6,0.22843]
[1724302920570,3.35805382,2625.8,2625.7,0.22842]
[1724302920571,0.3648,2625.8,2625.7,0.22842]
[1724302921265,0.3648,2625.8,2625.6,0.22843]
[1724302921465,0.3648,2625.8,2625.5,0.22843]
[1724302921680,2.49130764,2625.6,2625.5,0.22843]
[1724302922374,2.49130764,2625.6,2625.4,0.00881714]
[1724302924172,2.49130764,2625.7,2625.4,0.00881714]
[1724302924372,2.85610764,2625.8,2625.6,0.22843]
[1724302924878,2.85610764,2625.8,2625.5,0.3624]
[1724302924879,2.85610764,2625.8,2625.5,0.59083]
[1724302925077,2.85610764,2625.8,2625.5,0.3624]
[1724302925374,0.3648,2625.8,2625.7,0.22842]
[1724302925770,0.3648,2625.8,2625.6,0.22843]
[1724302925969,2.85610764,2625.8,2625.6,0.22843]
[1724302926370,0.3648,2625.8,2625.6,0.22843]
[1724302926566,0.3648,2625.8,2625.5,0.3624]
[1724302926567,0.3648,2625.8,2625.5,0.59083]
[1724302926969,0.3648,2625.8,2625.6,0.22843]
[1724302927384,2.85610764,2625.8,2625.6,0.22843]
[1724302927679,0.3648,2625.8,2625.6,0.22843]
[1724302928186,2.85610764,2625.8,2625.6,0.22843]
[1724302928379,0.3648,2625.8,2625.6,0.22843]
[1724302929074,2.85610764,2625.8,2625.6,0.22843]
[1724302929576,2.85610764,2625.8,2625.7,0.22842]
[1724302930089,0.3648,2625.8,2625.7,0.22842]
[1724302930880,0.3648,2625.8,2625.5,0.3624]
[1724302930881,0.3648,2625.8,2625.6,0.22843]
[1724302931478,3.08452764,2625.8,2625.4,0.23725714]
[1724302931678,2.71973764,2625.7,2625.4,0.00881714]
[1724302933170,2.49130764,2625.7,2625.5,0.22844]
[1724302933481,2.85610764,2625.8,2625.5,0.22844]
[1724302933678,2.85610764,2625.8,2625.7,0.22842]
[1724302933871,0.3648,2625.8,2625.7,0.22842]
[1724302935976,0.3482,2625.9,2625.8,0.22841]
[1724302944390,0.3482,2625.9,2625.7,0.3011732]
[1724302944583,0.3533,2625.8,2625.7,0.22842]
[1724302944780,2.49130764,2626.0,2625.6,3.2078]
[1724302944985,2.49130764,2626.0,2625.9,0.2284]
[1724302947389,0.3533,2626.1,2625.9,0.2284]
[1724302947579,0.3533,2626.1,2625.6,3.2078]
[1724302947785,0.3533,2626.1,2626.0,0.2284]
[1724302947986,0.3533,2626.1,2625.6,3.50391445]
[1724302948186,2.49141496,2625.9,2625.6,3.50391445]
[1724302948387,2.49141496,2625.9,2625.8,0.22841]
[1724302948889,2.49141496,2625.9,2625.8,4.03641]
[1724302949390,3.73915382,2626.2,2625.6,3.50391445]
[1724302949596,2.49191865,2625.7,2625.4,0.00881714]
[1724302949783,0.3715,2625.6,2625.4,0.00881714]
[1724302949986,2.86341865,2625.6,2625.4,0.00881714]
[1724302950198,2.86341865,2625.6,2625.4,0.23726714]
[1724302950583,2.86341865,2625.6,2625.4,0.30729095]
[1724302950785,2.86341865,2625.6,2625.4,0.53573095]
[1724302950990,2.86341865,2625.6,2625.5,0.22844]
[1724302952000,2.86341865,2625.6,2625.4,0.30729095]
[1724302952388,2.86341865,2625.6,2625.4,0.53573095]
[1724302952891,2.86341865,2625.6,2625.5,0.22844]
[1724302953802,2.86341865,2625.6,2625.4,0.53573095]
[1724302955294,2.49191865,2625.5,2625.4,0.00881714]
[1724302955602,3.59318382,2625.6,2625.4,0.00881714]
[1724302956494,0.22844,2625.5,2625.4,0.00881714]
[1724302956690,3.59319382,2625.6,2625.4,0.00881714]
[1724302957391,0.22844,2625.5,2625.4,0.00881714]
[1724302957898,4.03724,2625.5,2625.4,0.00881714]
[1724302958197,7.03049382,2625.5,2625.4,0.00881714]
[1724302958400,0.22845,2625.4,2625.0,0.22848]
[1724302958592,2.49339662,2625.1,2625.0,0.22848]
[1724302959095,3.35387595,2625.3,2625.0,0.22848]
[1724302959311,0.3689,2625.2,2625.0,0.23322929]
[1724302959501,0.3689,2625.2,2625.0,0.00474929]
[1724302959798,3.36097595,2625.2,2625.0,0.00474929]
[1724302961199,0.3689,2625.2,2625.0,0.00474929]
[1724302961694,0.3763,2625.1,2625.0,0.00474929]
[1724302969501,2.86622842,2625.1,2625.0,0.00474929]
[1724302969906,0.3763,2625.1,2625.0,0.00474929]
[1724302970203,4.1859,2625.1,2625.0,0.00474929]
[1724302972805,6.67480555,2625.1,2625.0,0.00474929]
[1724302975205,4.1859,2625.1,2625.0,0.00474929]
[1724302975409,6.67415014,2625.1,2625.0,0.00474929]
[1724302975907,4.1859,2625.1,2625.0,0.00474929]
[1724302976504,5.2829,2625.1,2625.0,0.00474929]
[1724302978612,7.77057352,2625.1,2625.0,0.00474929]
[1724302979112,5.2829,2625.1,2625.0,0.00474929]
[1724302980410,7.77026337,2625.1,2625.0,0.00474929]
[1724302981612,5.2829,2625.1,2625.0,0.00474929]
[1724302981807,7.77015311,2625.1,2625.0,0.00474929]
[1724302982410,5.2829,2625.1,2625.0,0.00474929]
[1724302983312,7.77023102,2625.1,2625.0,0.00474929]
[1724302983512,5.2829,2625.1,2625.0,0.00474929]
[1724302987218,5.2829,2625.1,2624.4,0.373]
[1724302987219,0.22851,2624.8,2624.4,0.373]
[1724302987424,3.58556417,2624.6,2624.4,0.373]
[1724302987715,2.48882386,2624.7,2624.5,1.097]
[1724302987920,2.48882386,2624.8,2624.7,0.22851]
[1724302988118,2.49326026,2624.8,2624.7,1.097]
[1724302988322,2.49326026,2624.8,2624.7,0.00335534]
[1724302990114,0.0044364,2624.8,2624.7,0.00335534]
[1724302990415,0.0044364,2624.8,2624.7,8.34626534]
[1724302990614,2.48930355,2625.0,2624.9,0.22849]
[1724302990814,2.48930355,2625.1,2624.9,1.32549]
[1724302991028,2.48930355,2625.1,2625.0,0.3737]
[1724302991607,0.00357089,2625.1,2625.0,0.3737]
[1724302992113,2.49316475,2625.1,2625.0,0.3737]
[1724302992422,0.00357089,2625.1,2625.0,0.98148]
[1724302993116,2.49367643,2625.1,2625.0,0.98148]
[1724302993322,0.00357089,2625.1,2625.0,0.98148]
[1724302994716,0.00357089,2625.1,2625.0,1.097]
[1724302995317,2.99564684,2625.1,2625.0,1.097]
[1724302995517,3.22411684,2625.1,2625.0,1.097]
[1724302996124,3.22411684,2625.1,2624.7,3.21115534]
[1724302996125,0.22849,2625.0,2624.7,3.21115534]
[1724302996426,1.097,2624.9,2624.7,0.00335534]
[1724302996617,4.08851493,2624.9,2624.7,0.00335534]
[1724302996811,0.3695,2624.8,2624.7,0.00335534]
[1724302997215,0.3695,2624.8,2624.7,1.10035534]
[1724302999627,3.36101493,2624.8,2624.7,1.10035534]
[1724303001930,4.06991493,2624.8,2624.7,1.10035534]
[1724303002229,1.0784,2624.8,2624.7,1.10035534]
[1724303002417,1.3069,2624.8,2624.7,0.00335534]
[1724303002617,8.00369756,2624.8,2624.7,0.00335534]
[1724303004520,9.4213,2624.8,2624.7,0.00335534]
[1724303004722,13.41093939,2624.8,2624.7,0.00335534]
[1724303005031,12.31393939,2624.8,2624.7,0.00335534]
[1724303005929,13.41093939,2624.8,2624.7,0.00335534]
[1724303006430,9.4213,2624.8,2624.7,0.00335534]
[1724303006820,13.90474747,2624.8,2624.7,0.00335534]
[1724303007423,0.22851,2624.7,2624.5,0.00571766]
[1724303007729,3.99462404,2624.7,2624.5,0.00571766]
[1724303008025,3.49519104,2624.6,2624.5,1.10271766]
[1724303008228,3.49519104,2624.6,2624.5,1.10705406]
[1724303008620,3.49519104,2624.7,2624.5,1.10705406]
[1724303010629,3.49519104,2624.6,2624.5,1.10705406]
[1724303011128,3.72370104,2624.7,2624.5,1.10705406]
[1724303011334,3.49519104,2624.6,2624.5,1.10705406]
[1724303012124,3.49519104,2624.6,2624.5,0.01005406]
[1724303012125,7.53411104,2624.6,2624.5,0.01005406]
[1724303012320,8.63111104,2624.6,2624.5,0.01005406]
[1724303012527,4.82071104,2624.6,2624.5,0.01005406]
[1724303013033,8.63111104,2624.6,2624.5,0.01005406]
[1724303013229,8.63111104,2624.6,2624.0,3.2078]
[1724303013230,5.4787,2624.6,2624.0,3.2078]
[1724303013423,3.22305658,2624.3,2624.1,1.097]
[1724303013731,0.7364,2624.2,2624.1,1.097]
[1724303013925,1.0927,2624.2,2624.1,1.097]
[1724303014130,1.0927,2624.2,2624.1,1.10187888]
[1724303015526,1.0927,2624.2,2624.1,0.00487888]
[1724303016535,2.99450658,2624.4,2624.1,0.23343888]
[1724303016724,3.37810658,2624.5,2624.3,1.32554]
[1724303016927,0.3836,2624.5,2624.3,1.32554]
[1724303017126,0.3836,2624.5,2624.1,0.00487888]
[1724303017127,0.61213,2624.5,2624.1,0.00487888]
[1724303017430,2.49420526,2624.2,2624.1,0.00487888]
[1724303017642,2.49420526,2624.2,2624.1,1.33043888]